bitfinex/quotes_BTCUSD_20250616
["timestamp","ask_amount","ask_price","bid_price","bid_amount"]
[1750036906459,3.95340969,105310.0,105300.0,0.001]
[1750036909114,0.73870369,105310.0,105300.0,0.001]
[1750036909309,0.73870369,105310.0,105300.0,0.0175]
[1750036911006,0.73870369,105310.0,105300.0,0.034]
[1750036911645,0.73870369,105310.0,105300.0,0.3328]
[1750036912345,0.73870369,105310.0,105300.0,0.3163]
[1750036912839,0.73870369,105310.0,105300.0,0.3314]
[1750036913079,0.34108993,105310.0,105300.0,0.36738682]
[1750036913314,0.73870369,105310.0,105300.0,0.36738682]
[1750036913784,0.73870369,105310.0,105300.0,0.3314]
[1750036914768,0.39870369,105310.0,105300.0,0.3314]
[1750036915876,0.73870369,105310.0,105300.0,0.3314]
[1750036920201,0.73870369,105310.0,105300.0,0.44218261]
[1750036920449,0.00108993,105310.0,105300.0,0.44218261]
[1750036920676,0.00108993,105310.0,105300.0,0.56680007]
[1750036921410,0.00108993,105310.0,105300.0,0.47065085]
[1750036921619,0.00108993,105310.0,105300.0,0.90622325]
[1750036921834,0.00108993,105310.0,105300.0,1.04163501]
[1750036922286,0.00108993,105310.0,105300.0,0.64402125]
[1750036922753,0.00108993,105310.0,105300.0,0.67248657]
[1750036922979,0.00108993,105310.0,105300.0,0.49350657]
[1750036922980,0.39870369,105310.0,105300.0,0.49350657]
[1750036923162,0.39870369,105310.0,105300.0,0.3018]
[1750036923450,0.39870369,105310.0,105300.0,0.002]
[1750036923697,0.39770369,105310.0,105300.0,0.002]
[1750036923913,0.39870369,105310.0,105300.0,0.005]
[1750036926438,0.41560369,105310.0,105300.0,0.005]
[1750036926653,3.78190969,105310.0,105300.0,0.005]
[1750036926868,3.79140969,105310.0,105300.0,0.005]
[1750036927083,3.80090474,105310.0,105300.0,0.005]
[1750036927297,3.79140969,105310.0,105300.0,0.005]
[1750036927537,3.81996769,105310.0,105300.0,0.005]
[1750036927962,3.83895788,105310.0,105300.0,0.005]
[1750036928177,3.83895779,105310.0,105300.0,0.005]
[1750036928399,3.82946265,105310.0,105300.0,0.005]
[1750036928623,3.42235393,105310.0,105300.0,0.005]
[1750036928844,3.81996769,105310.0,105300.0,0.005]
[1750036929278,3.81046769,105310.0,105300.0,0.005]
[1750036929490,3.95740769,105310.0,105300.0,0.005]
[1750036930417,3.99210274,105310.0,105300.0,0.005]
[1750036930634,3.99210265,105310.0,105300.0,0.005]
[1750036930858,3.98260769,105310.0,105300.0,0.005]
[1750036932362,4.09783964,105310.0,105300.0,0.005]
[1750036932574,4.08834441,105310.0,105300.0,0.005]
[1750036932787,4.09783946,105310.0,105300.0,0.005]
[1750036933427,4.08834441,105310.0,105300.0,0.005]
[1750036933643,4.08734441,105310.0,105300.0,0.002]
[1750036933860,4.08934441,105310.0,105300.0,0.003]
[1750036934319,4.07984945,105310.0,105300.0,0.001]
[1750036934546,3.90650945,105310.0,105300.0,0.002]
[1750036934771,3.76600969,105310.0,105300.0,0.002]
[1750036934990,0.34208993,105310.0,105300.0,0.033]
[1750036935223,0.34208993,105310.0,105300.0,0.3318]
[1750036935224,0.00208993,105310.0,105300.0,0.3318]
[1750036935447,0.00208993,105310.0,105300.0,0.40032516]
[1750036935664,0.00208993,105310.0,105300.0,0.51110777]
[1750036937836,0.00208993,105310.0,105300.0,0.60992153]
[1750036937838,0.00208993,105310.0,105300.0,0.61941485]
[1750036938018,0.39970369,105310.0,105300.0,0.37400742]
[1750036938234,0.39970369,105310.0,105300.0,0.21020742]
[1750036938674,0.00208993,105310.0,105300.0,0.20920742]
[1750036938898,8.993e-05,105310.0,105300.0,0.23311484]
[1750036939116,0.00108993,105310.0,105300.0,0.24111484]
[1750036940765,0.00108993,105310.0,105300.0,0.21620742]
[1750036942138,0.00108993,105310.0,105300.0,0.17824878]
[1750036944303,0.00108993,105310.0,105300.0,0.18062268]
[1750036945339,0.00108993,105310.0,105300.0,0.17824878]
[1750036946292,0.39870369,105310.0,105300.0,0.17824878]
[1750036946492,0.39870369,105310.0,105300.0,0.34196878]
[1750036946697,0.39870369,105310.0,105300.0,0.17824878]
[1750036946915,0.39870369,105310.0,105300.0,0.06746617]
[1750036947123,0.39870369,105310.0,105300.0,0.35096617]
[1750036948305,0.00108993,105310.0,105300.0,0.35096617]
[1750036948511,0.39870369,105310.0,105300.0,0.42253065]
[1750036948712,0.39870369,105310.0,105300.0,0.53331326]
[1750036948713,0.00108993,105310.0,105300.0,0.53331326]
[1750036954601,0.00108993,105310.0,105300.0,0.5712719]
[1750036954849,0.00108993,105310.0,105300.0,0.54280573]
[1750036955091,0.00108993,105310.0,105300.0,0.94041949]
[1750036955318,0.00108993,105310.0,105300.0,0.59964048]
[1750036957491,0.00108993,105310.0,105300.0,0.99725424]
[1750036958136,0.00108993,105310.0,105300.0,0.9592956]
[1750036960780,0.00108993,105310.0,105300.0,1.25642073]
[1750036961026,0.00108993,105310.0,105300.0,1.56793198]
[1750036961240,0.00108993,105310.0,105300.0,1.34125702]
[1750036961448,0.00108993,105310.0,105300.0,1.55017702]
[1750036962078,0.00108993,105310.0,105300.0,1.54617702]
[1750036962291,0.00108993,105310.0,105300.0,1.54917702]
[1750036962500,8.993e-05,105310.0,105300.0,1.54517702]
[1750036962723,8.993e-05,105310.0,105300.0,1.59517702]
[1750036962936,0.00108993,105310.0,105300.0,1.54901702]
[1750036964096,0.00108993,105310.0,105300.0,1.05097878]
[1750036964530,0.00108993,105310.0,105300.0,0.97493784]
[1750036965001,0.00108993,105310.0,105300.0,1.05097878]
[1750036965213,0.00108993,105310.0,105300.0,0.87283793]
[1750036965438,0.00108993,105310.0,105300.0,0.96039699]
[1750036965647,0.00108993,105310.0,105300.0,1.12800871]
[1750036966561,0.00108993,105310.0,105300.0,0.52825949]
[1750036966782,0.39870369,105310.0,105300.0,0.72976941]
[1750036968047,0.00108993,105310.0,105300.0,0.72976941]
[1750036969122,0.00108993,105310.0,105300.0,1.12738317]
[1750036969325,0.00108993,105310.0,105300.0,1.08943325]
[1750036969535,0.00108993,105310.0,105300.0,1.75362844]
[1750036969749,0.00108993,105310.0,105300.0,1.55419843]
[1750036969960,0.00108993,105310.0,105300.0,1.75362844]
[1750036970174,0.00108993,105310.0,105300.0,1.82262097]
[1750036970399,0.004,105330.0,105320.0,0.42951376]
[1750036970644,0.004,105330.0,105320.0,0.85132459]
[1750036970873,0.004,105330.0,105320.0,0.45371083]
[1750036971115,0.004,105330.0,105320.0,0.3968018]
[1750036972813,0.004,105330.0,105320.0,0.3978018]
[1750036973046,0.005,105330.0,105320.0,0.3978018]
[1750036973982,0.005,105330.0,105320.0,0.39779976]
[1750036979641,0.005,105330.0,105320.0,0.69659976]
[1750036980704,0.005,105330.0,105320.0,0.75350879]
[1750036983755,0.005,105330.0,105320.0,0.76804964]
[1750036983993,0.005,105330.0,105320.0,1.23547807]
[1750036984207,0.005,105330.0,105320.0,1.34000299]
[1750036984427,0.005,105330.0,105320.0,0.58568733]
[1750036984645,0.005,105330.0,105320.0,0.74912733]
[1750036985074,0.005,105330.0,105320.0,0.75112733]
[1750036985305,0.005,105330.0,105320.0,0.58768733]
[1750036985526,0.005,105330.0,105320.0,0.51164639]
[1750036985753,0.004,105330.0,105320.0,0.68654285]
[1750036985971,0.004,105330.0,105320.0,0.508602]
[1750036986193,0.004,105330.0,105320.0,0.70994125]
[1750036986410,0.005,105330.0,105320.0,0.7264821]
[1750036986965,0.005,105330.0,105320.0,0.5630821]
[1750036987169,0.005,105330.0,105320.0,0.51664125]
[1750036987475,0.005,105330.0,105320.0,0.63768018]
[1750036988000,0.005,105330.0,105320.0,0.47428018]
[1750036988254,0.39237936,105330.0,105320.0,0.66614191]
[1750036988509,0.005,105330.0,105320.0,0.78041097]
[1750036988752,0.005,105330.0,105320.0,0.75194924]
[1750036989007,0.005,105330.0,105320.0,0.80885116]
[1750036990726,0.005,105330.0,105320.0,0.7261821]
[1750036990931,0.005,105330.0,105320.0,0.6945821]
[1750036991143,0.005,105330.0,105320.0,0.6945421]
[1750036991838,0.005,105330.0,105320.0,0.7251421]
[1750036992492,0.005,105330.0,105320.0,0.66824018]
[1750036992703,0.005,105330.0,105320.0,0.75111907]
[1750036993335,0.005,105330.0,105320.0,0.80802099]
[1750036993970,0.005,105330.0,105320.0,1.16735188]
[1750036994412,0.005,105330.0,105320.0,1.11044996]
[1750036994864,0.005,105330.0,105320.0,0.77010626]
[1750036995560,0.005,105330.0,105320.0,0.60674626]
[1750036995771,0.005,105330.0,105320.0,0.77010626]
[1750036999694,0.005,105330.0,105320.0,1.1673764]
[1750036999904,0.005,105330.0,105320.0,0.77010626]
[1750037001390,0.005,105330.0,105320.0,0.71317982]
[1750037002906,0.005,105330.0,105320.0,1.11044996]
[1750037003382,0.005,105330.0,105320.0,1.1864909]
[1750037004255,0.005,105330.0,105320.0,0.62586076]
[1750037004496,0.005,105330.0,105320.0,0.54981982]
[1750037004744,0.005,105330.0,105320.0,0.6871945]
[1750037005476,0.40227014,105330.0,105320.0,0.5239145]
[1750037005701,0.41817014,105330.0,105320.0,0.68003838]
[1750037005915,0.41817014,105330.0,105320.0,0.62306481]
[1750037006133,0.41817014,105330.0,105320.0,0.66609591]
[1750037006361,0.42657014,105330.0,105320.0,0.0932333]
[1750037006580,0.46922715,105330.0,105320.0,0.05524857]
[1750037007059,0.42657014,105330.0,105320.0,0.05524857]
[1750037007271,0.42657014,105330.0,105320.0,0.02675832]
[1750037007495,0.42657014,105330.0,105320.0,0.02475832]
[1750037007718,0.42557014,105330.0,105320.0,0.02275832]
[1750037007931,0.42657014,105330.0,105320.0,0.18703832]
[1750037008141,0.42657014,105330.0,105320.0,0.02375832]
[1750037008363,0.42657014,105330.0,105320.0,0.18703832]
[1750037008575,0.42657014,105330.0,105320.0,0.02375832]
[1750037013659,0.76657014,105330.0,105320.0,0.02375832]
[1750037013888,0.76657014,105330.0,105320.0,0.001]
[1750037013889,3.44016148,105330.0,105320.0,0.001]
[1750037014102,3.79287614,105330.0,105320.0,0.001]
[1750037014804,0.34,105320.0,105310.0,0.56572679]
[1750037015018,0.73727014,105320.0,105310.0,0.60368361]
[1750037015454,0.73727014,105320.0,105310.0,0.67069947]
[1750037015645,0.73727014,105320.0,105310.0,0.60368361]
[1750037016783,0.73827014,105320.0,105310.0,0.60468361]
[1750037019129,0.73827014,105320.0,105310.0,0.58948361]
[1750037019563,0.75457014,105320.0,105310.0,0.58948361]
[1750037019781,0.73827014,105320.0,105310.0,0.58948361]
[1750037020221,0.73827014,105320.0,105310.0,0.42620361]
[1750037020453,0.73827014,105320.0,105310.0,0.58944361]
[1750037020673,0.39827014,105320.0,105310.0,0.58944361]
[1750037021339,0.39827014,105320.0,105310.0,0.60544361]
[1750037022791,0.39827014,105320.0,105310.0,0.62124361]
[1750037023053,0.001,105320.0,105310.0,0.82390986]
[1750037023259,0.001,105320.0,105310.0,0.86189459]
[1750037023772,0.001,105320.0,105310.0,0.89037791]
[1750037024246,0.001,105320.0,105310.0,0.83340434]
[1750037025417,0.001,105320.0,105310.0,0.89037791]
[1750037025658,0.001,105320.0,105310.0,0.83340434]
[1750037027978,0.001,105320.0,105310.0,0.89037791]
[1750037028208,0.001,105320.0,105310.0,0.83340434]
[1750037029077,0.001,105320.0,105310.0,0.89037791]
[1750037029297,0.001,105320.0,105310.0,0.83340434]
[1750037029529,0.001,105320.0,105310.0,0.89037791]
[1750037029749,0.001,105320.0,105310.0,0.83340434]
[1750037029967,0.001,105320.0,105310.0,0.89037791]
[1750037032617,0.001,105320.0,105310.0,0.85239318]
[1750037033054,0.001,105320.0,105310.0,0.89031915]
[1750037033283,0.001,105320.0,105310.0,0.85239318]
[1750037036755,0.21880982,105340.0,105320.0,0.0311]
[1750037036964,0.21880982,105340.0,105330.0,0.16316]
[1750037037189,0.23460982,105340.0,105330.0,0.18591682]
[1750037038122,0.23760982,105340.0,105330.0,0.18591682]
[1750037038331,0.24260982,105340.0,105330.0,0.18691682]
[1750037038551,0.23960982,105340.0,105330.0,0.18691682]
[1750037038967,0.24260982,105340.0,105330.0,0.18691682]
[1750037039171,0.0238,105340.0,105330.0,0.18691682]
[1750037039391,0.39625582,105340.0,105330.0,0.18691682]
[1750037039595,0.38045582,105340.0,105330.0,0.25781571]
[1750037039794,0.38045582,105340.0,105330.0,0.18691682]
[1750037041472,0.39545582,105340.0,105330.0,0.18691682]
[1750037041678,0.39545582,105340.0,105330.0,0.48571682]
[1750037042743,0.38045582,105340.0,105330.0,0.48571682]
[1750037043886,0.20563048,105340.0,105330.0,0.48571682]
[1750037044094,0.20563048,105340.0,105330.0,0.55661571]
[1750037044937,0.39731664,105340.0,105330.0,0.55661571]
[1750037046432,0.39745151,105340.0,105330.0,0.55661571]
[1750037047048,0.41305151,105340.0,105330.0,0.48563682]
[1750037047261,0.39745151,105340.0,105330.0,0.48563682]
[1750037048553,0.41305151,105340.0,105330.0,0.48563682]
[1750037049705,3.44765751,105340.0,105330.0,0.32255682]
[1750037051590,3.43935751,105340.0,105330.0,0.32255682]
[1750037052412,3.44765751,105340.0,105330.0,0.32255682]
[1750037053482,3.44765751,105340.0,105330.0,0.02375682]
[1750037061856,3.02644087,105340.0,105330.0,0.02897883]
[1750037062088,3.42375751,105340.0,105330.0,0.02897883]
[1750037062315,3.42375751,105340.0,105330.0,0.02375682]
[1750037062316,3.79874219,105340.0,105330.0,0.02375682]
[1750037062532,4.11213102,105340.0,105330.0,0.001]
[1750037062743,0.0233,105320.0,105310.0,0.13211005]
[1750037062959,4.19373343,105320.0,105310.0,0.1264479]
[1750037063174,4.20322767,105320.0,105310.0,0.1264479]
[1750037063408,4.19373343,105320.0,105310.0,0.1264479]
[1750037063849,4.20322776,105320.0,105310.0,0.1264479]
[1750037064057,4.20322767,105320.0,105310.0,0.1264479]
[1750037064287,4.19373334,105320.0,105310.0,0.1264479]
[1750037064511,4.20422758,105320.0,105310.0,0.1304479]
[1750037064802,4.20422758,105320.0,105310.0,0.10764679]
[1750037065011,4.19473334,105320.0,105310.0,0.10764679]
[1750037065429,4.19473334,105320.0,105310.0,0.10864679]
[1750037065646,4.20422758,105320.0,105310.0,0.10864679]
[1750037065861,4.19473334,105320.0,105310.0,0.10864679]
[1750037066068,4.04395304,105320.0,105310.0,0.10864679]
[1750037066276,4.04395334,105320.0,105310.0,0.10864679]
[1750037067348,4.03445928,105320.0,105310.0,0.10864679]
[1750037067579,3.63714264,105320.0,105310.0,0.15091147]
[1750037068001,3.63714264,105320.0,105310.0,0.14004679]
[1750037068677,3.63714264,105320.0,105310.0,0.14171679]
[1750037075475,4.03445928,105320.0,105310.0,0.14171679]
[1750037076103,4.14968961,105320.0,105310.0,0.11031679]
[1750037076344,4.52495626,105320.0,105310.0,0.11031679]
[1750037076555,4.33505881,105320.0,105310.0,0.00667]
[1750037076761,4.35118384,105320.0,105310.0,0.00667]
[1750037076970,4.3511838,105320.0,105310.0,0.00667]
[1750037077169,4.34068965,105320.0,105310.0,0.00267]
[1750037077382,4.33119474,105320.0,105310.0,0.00267]
[1750037077584,4.3311948,105320.0,105310.0,0.00267]
[1750037077792,4.3311946,105320.0,105310.0,0.00167]
[1750037077990,4.32556466,105320.0,105310.0,0.00167]
[1750037078195,4.32656466,105320.0,105310.0,0.00267]
[1750037078406,4.32556466,105320.0,105310.0,0.00267]
[1750037078616,4.33219469,105320.0,105310.0,0.00267]
[1750037078816,4.33605953,105320.0,105310.0,0.00267]
[1750037079045,4.33319461,105320.0,105310.0,0.00267]
[1750037079251,4.32656466,105320.0,105310.0,0.00267]
[1750037079462,4.1383311,105320.0,105310.0,0.00267]
[1750037079671,4.36499958,105320.0,105310.0,0.03407]
[1750037080163,4.3649997,105320.0,105310.0,0.03407]
[1750037080357,4.36499971,105320.0,105310.0,0.03407]
[1750037080766,4.3649997,105320.0,105310.0,0.03407]
[1750037080967,4.35836952,105320.0,105310.0,0.03407]
[1750037081182,4.3649997,105320.0,105310.0,0.01797]
[1750037081600,4.36499979,105320.0,105310.0,0.01797]
[1750037081809,4.14119519,105320.0,105310.0,0.01797]
[1750037082072,4.31352952,105320.0,105310.0,0.03417]
[1750037082321,4.32015884,105320.0,105310.0,0.03417]
[1750037082563,4.31066442,105320.0,105310.0,0.03417]
[1750037082793,4.320159,105320.0,105310.0,0.03417]
[1750037082990,4.32015988,105320.0,105310.0,0.03417]
[1750037083195,4.32015996,105320.0,105310.0,0.03417]
[1750037083399,4.3296546,105320.0,105310.0,0.03417]
[1750037083606,4.32965456,105320.0,105310.0,0.03417]
[1750037083839,4.35821237,105320.0,105310.0,0.03417]
[1750037084055,4.36107663,105320.0,105310.0,0.00267]
[1750037084263,4.36770641,105320.0,105310.0,0.00267]
[1750037084471,4.3772012,105320.0,105310.0,0.00267]
[1750037084688,4.36770642,105320.0,105310.0,0.00267]
[1750037084896,4.36107663,105320.0,105310.0,0.00267]
[1750037085108,4.36770647,105320.0,105310.0,0.00267]
[1750037085314,4.36107663,105320.0,105310.0,0.00267]
[1750037085512,4.36770646,105320.0,105310.0,0.00267]
[1750037085722,4.36107663,105320.0,105310.0,0.00267]
[1750037086356,4.36770632,105320.0,105310.0,0.00267]
[1750037086800,4.37057132,105320.0,105310.0,0.00267]
[1750037087005,4.37057204,105320.0,105310.0,0.00267]
[1750037087210,4.37057195,105320.0,105310.0,0.00267]
[1750037087410,4.35158248,105320.0,105310.0,0.00267]
[1750037087904,4.35821174,105320.0,105310.0,0.00267]
[1750037088100,4.3582115,105320.0,105310.0,0.00267]
[1750037088749,4.3487164,105320.0,105310.0,0.00267]
[1750037088976,4.35821046,105320.0,105310.0,0.03377]
[1750037089187,4.35821037,105320.0,105310.0,0.03377]
[1750037089404,4.35821032,105320.0,105310.0,0.03377]
[1750037089616,4.35821031,105320.0,105310.0,0.03377]
[1750037090902,4.35158185,105320.0,105310.0,0.03377]
[1750037091113,4.35821031,105320.0,105310.0,0.03377]
[1750037091785,4.1697531,105320.0,105310.0,0.03377]
[1750037091994,4.4028104,105320.0,105310.0,0.03377]
[1750037092206,4.39331589,105320.0,105310.0,0.03377]
[1750037092417,4.39331649,105320.0,105310.0,0.03377]
[1750037092842,4.39331661,105320.0,105310.0,0.03377]
[1750037093048,4.39331666,105320.0,105310.0,0.03377]
[1750037093260,4.40281123,105320.0,105310.0,0.03377]
[1750037093474,4.39618194,105320.0,105310.0,0.03377]
[1750037093688,4.40281144,105320.0,105310.0,0.03377]
[1750037093899,4.4028121,105320.0,105310.0,0.03377]
[1750037094142,4.40281238,105320.0,105310.0,0.03377]
[1750037094574,4.4123073,105320.0,105310.0,0.03377]
[1750037094780,4.40567663,105320.0,105310.0,0.03377]
[1750037094990,4.41230759,105320.0,105310.0,0.01847]
[1750037095197,4.40281294,105320.0,105310.0,0.01847]
[1750037095469,4.39618194,105320.0,105310.0,0.03347]
[1750037095693,4.38668743,105320.0,105310.0,0.03347]
[1750037096108,4.393319,105320.0,105310.0,0.03347]
[1750037096314,4.38668743,105320.0,105310.0,0.03347]
[1750037096539,4.39331907,105320.0,105310.0,0.03347]
[1750037096756,4.3771931,105320.0,105310.0,0.03347]
[1750037096966,4.39331897,105320.0,105310.0,0.03347]
[1750037097607,3.36562576,105320.0,105310.0,0.03347]
[1750037097822,3.269384,105320.0,105310.0,0.03347]
[1750037098040,0.73931664,105320.0,105310.0,0.03347]
[1750037098481,0.73931664,105320.0,105310.0,0.04722621]
[1750037098910,0.73931664,105320.0,105310.0,0.03347]
[1750037100469,0.342,105320.0,105310.0,0.06197275]
[1750037100700,0.73931664,105320.0,105310.0,0.03347]
[1750037104158,0.73931664,105320.0,105310.0,0.33227]
[1750037105006,0.342,105320.0,105310.0,0.33227]
[1750037105215,0.73931664,105320.0,105310.0,0.33227]
[1750037105873,4.03545928,105320.0,105310.0,0.33227]
[1750037106503,3.63814264,105320.0,105310.0,0.33227]
[1750037109878,3.63814264,105320.0,105310.0,0.03347]
[1750037111997,3.240826,105320.0,105310.0,0.03347]
[1750037112182,3.63814264,105320.0,105310.0,0.03347]
[1750037112870,3.240826,105320.0,105310.0,0.03347]
[1750037113119,0.002,105320.0,105310.0,0.90494928]
[1750037113347,0.002,105320.0,105310.0,1.1055002]
[1750037113575,0.002,105320.0,105310.0,1.07699745]
[1750037114011,0.73745151,105340.0,105330.0,0.0309]
[1750037114224,0.73745151,105340.0,105330.0,0.05367094]
[1750037115541,0.73845151,105340.0,105330.0,0.05967094]
[1750037116187,0.73845151,105340.0,105330.0,0.06167094]
[1750037118925,0.73845151,105340.0,105330.0,0.36047094]
[1750037124345,0.34113487,105340.0,105330.0,0.36047094]
[1750037125323,0.34113487,105340.0,105330.0,0.41562043]
[1750037125324,0.00113487,105340.0,105330.0,0.41562043]
[1750037125988,0.00113487,105340.0,105330.0,0.95218368]
[1750037126572,0.00113487,105340.0,105330.0,0.66219755]
[1750037128356,0.00113487,105340.0,105330.0,0.49971755]
[1750037128573,0.39845151,105340.0,105330.0,0.49971755]
[1750037128774,0.39845151,105340.0,105330.0,0.36047094]
[1750037128981,0.39845151,105340.0,105330.0,0.52291094]
[1750037129324,0.00113487,105340.0,105330.0,0.71575942]
[1750037130394,0.00113487,105340.0,105330.0,0.55323508]
[1750037130602,0.39845151,105340.0,105330.0,0.66207321]
[1750037130805,0.39845151,105340.0,105330.0,0.63365621]
[1750037131011,0.00113487,105340.0,105330.0,0.63365621]
[1750037131218,0.00113487,105340.0,105330.0,0.66207321]
[1750037131423,0.00113487,105340.0,105330.0,0.49963321]
[1750037131635,0.00113487,105340.0,105330.0,0.63365621]
[1750037133410,0.00113487,105340.0,105330.0,0.70365862]
[1750037133675,0.00113487,105340.0,105330.0,0.73207562]
[1750037139355,0.00113487,105340.0,105330.0,0.77002654]
[1750037141519,0.00113487,105340.0,105330.0,0.74160954]
[1750037141731,0.00113487,105340.0,105330.0,1.19589975]
[1750037141946,0.00113487,105340.0,105330.0,1.34782825]
[1750037142161,0.038538,105380.0,105370.0,0.0316]
[1750037142378,0.038538,105380.0,105370.0,0.35199873]
[1750037142379,0.74779005,105380.0,105370.0,0.35199873]
[1750037142598,0.76667276,105380.0,105370.0,0.35199873]
[1750037142840,0.7666727,105380.0,105370.0,0.35199873]
[1750037143088,0.75782176,105380.0,105370.0,0.35199873]
[1750037143309,0.76082176,105380.0,105370.0,0.35199873]
[1750037143773,0.76582176,105380.0,105370.0,0.35299873]
[1750037144965,0.36850512,105380.0,105370.0,0.35299873]
[1750037145385,0.76582176,105380.0,105370.0,0.35299873]
[1750037146462,0.77467088,105380.0,105370.0,0.35299873]
[1750037146694,0.77467102,105380.0,105370.0,0.35299873]
[1750037146920,0.76582176,105380.0,105370.0,0.35299873]
[1750037147133,3.67349698,105380.0,105370.0,0.35299873]
[1750037147325,3.67349691,105380.0,105370.0,0.29866513]
[1750037147524,3.67349676,105380.0,105370.0,0.29866513]
[1750037147930,3.68234578,105380.0,105370.0,0.29866513]
[1750037148132,3.68234582,105380.0,105370.0,0.29866513]
[1750037148331,3.67349676,105380.0,105370.0,0.29866513]
[1750037148900,3.70257111,105380.0,105370.0,0.29866513]
[1750037149152,3.70257072,105380.0,105370.0,0.29866513]
[1750037149359,3.70542303,105380.0,105370.0,0.29866513]
[1750037149563,3.70321083,105380.0,105370.0,0.29866513]
[1750037149789,3.72154863,105380.0,105370.0,0.29866513]
[1750037150280,3.87553981,105380.0,105370.0,0.29866513]
[1750037150540,3.88438928,105380.0,105370.0,0.29866513]
[1750037150764,3.86826344,105380.0,105370.0,0.29866513]
[1750037150994,3.86541149,105380.0,105370.0,0.29866513]
[1750037151223,3.87430019,105380.0,105370.0,0.001]
[1750037151443,3.86766328,105380.0,105370.0,0.001]
[1750037151665,3.86545104,105380.0,105370.0,0.001]
[1750037151889,3.85881415,105380.0,105370.0,0.001]
[1750037152116,3.87430022,105380.0,105370.0,0.001]
[1750037152347,3.86545104,105380.0,105370.0,0.001]
[1750037152572,3.84868593,105380.0,105370.0,0.001]
[1750037152835,3.86071091,105380.0,105370.0,0.001]
[1750037153048,3.84237329,105380.0,105370.0,0.001]
[1750037153257,3.85596195,105380.0,105370.0,0.001]
[1750037153464,3.87429953,105380.0,105370.0,0.001]
[1750037153668,3.86766313,105380.0,105370.0,0.001]
[1750037153896,3.86766311,105380.0,105370.0,0.001]
[1750037154163,3.85596202,105380.0,105370.0,0.001]
[1750037154463,3.86545094,105380.0,105370.0,0.001]
[1750037154695,4.16157218,105380.0,105370.0,0.001]
[1750037154935,4.19011292,105380.0,105370.0,0.001]
[1750037155159,4.57794035,105380.0,105370.0,0.001]
[1750037155400,4.18062357,105380.0,105370.0,0.001]
[1750037155859,4.18283555,105380.0,105370.0,0.001]
[1750037156327,4.1894715,105380.0,105370.0,0.001]
[1750037156553,4.57793996,105380.0,105370.0,0.001]
[1750037156817,4.18947103,105380.0,105370.0,0.001]
[1750037157043,0.01898153,105360.0,105340.0,0.05465379]
[1750037157267,3.63614264,105350.0,105340.0,0.05465379]
[1750037157696,3.63614264,105350.0,105340.0,0.05465343]
[1750037157922,3.64498929,105350.0,105340.0,0.05465343]
[1750037158206,3.64498935,105350.0,105340.0,0.05465343]
[1750037158404,3.63614264,105350.0,105340.0,0.05465343]
[1750037158621,3.64498935,105350.0,105340.0,0.0319]
[1750037159051,3.64498937,105350.0,105340.0,0.0319]
[1750037159263,3.6449894,105350.0,105340.0,0.0319]
[1750037159473,3.64498942,105350.0,105340.0,0.0319]
[1750037159679,3.64498942,105350.0,105340.0,0.0339]
[1750037159680,3.63614264,105350.0,105340.0,0.0339]
[1750037159885,3.64498942,105350.0,105340.0,0.0349]
[1750037160354,3.63614264,105350.0,105340.0,0.0339]
[1750037160830,3.64598932,105350.0,105340.0,0.0359]
[1750037161061,3.64598913,105350.0,105340.0,0.0359]
[1750037161286,3.63714264,105350.0,105340.0,0.0359]
[1750037161745,3.6459893,105350.0,105340.0,0.0359]
[1750037161969,3.64598931,105350.0,105340.0,0.03757]
[1750037162197,3.63714264,105350.0,105340.0,0.03757]
[1750037162658,3.64598988,105350.0,105340.0,0.03757]
[1750037162884,3.63714264,105350.0,105340.0,0.03757]
[1750037163559,3.64598996,105350.0,105340.0,0.03757]
[1750037163769,3.64599,105350.0,105340.0,0.03757]
[1750037163979,3.63714264,105350.0,105340.0,0.03757]
[1750037164195,3.64599006,105350.0,105340.0,0.03757]
[1750037164412,3.24867342,105350.0,105340.0,0.03757]
[1750037164620,3.63714264,105350.0,105340.0,0.03757]
[1750037164840,3.64598935,105350.0,105340.0,0.03757]
[1750037165055,3.6459893,105350.0,105340.0,0.03757]
[1750037165263,3.64598924,105350.0,105340.0,0.03757]
[1750037165487,3.63714264,105350.0,105340.0,0.03757]
[1750037165921,3.64598895,105350.0,105340.0,0.03757]
[1750037166130,3.63714264,105350.0,105340.0,0.03757]
[1750037166342,3.64598893,105350.0,105340.0,0.03757]
[1750037166550,3.6459889,105350.0,105340.0,0.03757]
[1750037166769,3.64598893,105350.0,105340.0,0.03757]
[1750037167206,3.63714264,105350.0,105340.0,0.03757]
[1750037167409,3.63614264,105350.0,105340.0,0.03557]
[1750037167830,3.63614264,105350.0,105340.0,0.03457]
[1750037168690,3.79826264,105350.0,105340.0,0.03457]
[1750037170265,3.8945044,105350.0,105340.0,0.03457]
[1750037171189,3.9230514,105350.0,105340.0,0.03457]
[1750037175682,4.12238621,105350.0,105340.0,0.01917]
[1750037175882,4.17521989,105350.0,105340.0,0.00267]
[1750037176118,3.95612653,105350.0,105340.0,0.00267]
[1750037176348,3.96276022,105350.0,105340.0,0.00267]
[1750037176573,3.7675651,105350.0,105340.0,0.00267]
[1750037176785,3.99298843,105350.0,105340.0,0.00267]
[1750037176996,3.98635473,105350.0,105340.0,0.00267]
[1750037177230,4.00248058,105350.0,105340.0,0.00167]
[1750037177455,4.00248057,105350.0,105340.0,0.00167]
[1750037177675,3.99784671,105350.0,105340.0,0.00167]
[1750037177892,4.18943249,105350.0,105340.0,0.00167]
[1750037178098,4.17330675,105350.0,105340.0,0.00167]
[1750037178318,4.17430675,105350.0,105340.0,0.00167]
[1750037178734,4.18094046,105350.0,105340.0,0.00167]
[1750037178941,4.18094049,105350.0,105340.0,0.00167]
[1750037179152,4.18094043,105350.0,105340.0,0.00167]
[1750037179591,4.17430675,105350.0,105340.0,0.00167]
[1750037180007,4.17634043,105350.0,105340.0,0.00167]
[1750037180219,4.00548093,105350.0,105340.0,0.00167]
[1750037180631,3.99884725,105350.0,105340.0,0.00167]
[1750037180845,4.00548093,105350.0,105340.0,0.00167]
[1750037181062,4.19043258,105350.0,105340.0,0.00167]
[1750037181274,0.35898677,105330.0,105320.0,0.0328]
[1750037181501,3.92294478,105330.0,105320.0,0.0328]
[1750037181718,2.898826,105320.0,105310.0,0.0325]
[1750037181921,3.88402173,105320.0,105310.0,0.0325]
[1750037182136,3.89351606,105320.0,105310.0,0.0325]
[1750037182351,3.98975782,105320.0,105310.0,0.0325]